bitfinex-derivatives/quotes_SOLF0:USTF0_20251202
["timestamp","ask_amount","ask_price","bid_price","bid_amount"]
[1764694355842,62.48,139.36,139.28,3.12]
[1764694356148,62.48,139.36,139.29,1.73696695]
[1764694356445,0.05349801,139.33,139.31,0.04656347]
[1764694357037,62.53349801,139.33,139.31,0.04656347]
[1764694357646,0.05349801,139.33,139.31,3.16656347]
[1764694358943,0.05349801,139.33,139.32,4.98767611]
[1764694359152,0.05349801,139.33,139.32,3.25]
[1764694359743,0.05349801,139.33,139.31,0.04656347]
[1764694362942,23.11349801,139.33,139.24,6.45408568]
[1764694363137,28.6388516,139.34,139.25,1.74353462]
[1764694363542,62.48,139.33,139.25,1.74353462]
[1764694363753,28.6388516,139.34,139.25,1.74353462]
[1764694364054,0.04972436,139.31,139.28,0.05250009]
[1764694364937,0.04972436,139.31,139.28,3.30250009]
[1764694365851,0.04972436,139.31,139.29,1.74319608]
[1764694366047,0.04972436,139.31,139.3,3.25]
[1764694368855,13.4751516,139.4,139.3,3.25]
[1764694369050,62.48,139.39,139.31,4.99700771]
[1764694369255,62.48,139.39,139.32,1.74655875]
[1764694369848,0.05343894,139.37,139.34,0.05161649]
[1764694370152,0.05343894,139.37,139.34,3.30161649]
[1764694371153,0.05343894,139.37,139.34,0.05161649]
[1764694373357,6.458,139.36,139.34,0.05161649]
[1764694373749,0.05343894,139.37,139.34,0.05161649]
[1764694374847,21.62,139.36,139.28,6.45408568]
[1764694375055,21.62,139.36,139.27,6.45408568]
[1764694375251,21.62,139.36,139.28,1.7523854]
[1764694375559,6.4594,139.33,139.26,6.45408568]
[1764694375758,0.0512113,139.31,139.28,0.05309345]
[1764694379753,0.0512113,139.31,139.28,3.30309345]
[1764694379953,0.0512113,139.31,139.3,3.25]
[1764694383367,118.0,139.37,139.3,3.25]
[1764694383663,62.48,139.36,139.3,3.25]
[1764694383854,62.48,139.36,139.3,6.45408568]
[1764694384060,62.48,139.36,139.29,6.45408568]
[1764694384364,118.0,139.37,139.3,3.25]
[1764694384565,0.0509687,139.35,139.33,3.25]
[1764694384755,0.05444189,139.35,139.34,3.25]
[1764694385155,62.48,139.39,139.34,3.25]
[1764694385352,62.48,139.39,139.35,3.25]
[1764694385551,62.48,139.39,139.34,9.70408568]
[1764694385756,62.48,139.39,139.34,3.25]
[1764694386261,0.03677119,139.38,139.34,3.25]
[1764694386456,0.03677119,139.38,139.34,9.70408568]
[1764694387364,0.03677119,139.38,139.35,11.45940742]
[1764694387659,0.03677119,139.38,139.36,3.25]
[1764694388059,0.03677119,139.38,139.35,6.45408568]
[1764694388257,0.03677119,139.38,139.35,3.25]
[1764694388462,0.03677119,139.38,139.33,9.75603137]
[1764694388662,68.9377,139.37,139.33,0.05194569]
[1764694391168,6.458,139.36,139.33,0.05194569]
[1764694391759,0.03677119,139.38,139.33,3.27194569]
[1764694391962,0.03677119,139.38,139.33,9.72603137]
[1764694391963,62.49677119,139.38,139.33,9.72603137]
[1764694392157,62.49677119,139.38,139.34,3.22]
[1764694392368,0.03677119,139.38,139.35,11.42801234]
[1764694392566,0.03677119,139.38,139.36,3.22]
[1764694393165,0.03677119,139.38,139.34,3.22]
[1764694393473,6.4576,139.37,139.33,0.05194569]
[1764694393766,0.03677119,139.38,139.33,0.05194569]
[1764694393966,6.4579,139.36,139.33,0.05194569]
[1764694394673,6.4585,139.35,139.33,0.05194569]
[1764694394870,0.03677119,139.38,139.33,3.27194569]
[1764694395076,62.46,139.37,139.33,3.27194569]
[1764694395370,62.46,139.37,139.33,9.72603137]
[1764694396166,0.03677119,139.38,139.33,9.72603137]
[1764694396366,62.46,139.37,139.33,9.72603137]
[1764694396563,62.46,139.37,139.33,3.27194569]
[1764694396868,62.46,139.37,139.34,3.22]
[1764694397066,0.03677119,139.38,139.34,3.22]
[1764694397278,62.46,139.37,139.34,3.22]
[1764694397873,62.46,139.37,139.33,6.50603137]
[1764694398069,62.46,139.37,139.33,0.05194569]
[1764694398274,62.46,139.37,139.33,3.27194569]
[1764694398480,6.458,139.36,139.33,3.27194569]
[1764694398987,62.46,139.37,139.33,3.27194569]
[1764694399187,62.46,139.37,139.33,9.72603137]
[1764694399582,62.46,139.37,139.34,3.22]
[1764694400289,0.03677119,139.38,139.34,3.22]
[1764694400586,62.46,139.37,139.34,9.67408568]
[1764694401486,6.49387119,139.38,139.33,6.50603137]
[1764694401686,62.46,139.37,139.33,6.50603137]
[1764694402283,62.46,139.37,139.33,0.05194569]
[1764694402586,62.46,139.37,139.33,9.72603137]
[1764694402787,68.9175,139.37,139.33,3.27194569]
[1764694402985,68.9175,139.37,139.33,0.05194569]
[1764694403486,62.46,139.37,139.33,0.05194569]
[1764694404298,68.9175,139.37,139.33,0.05194569]
[1764694404584,0.03677119,139.38,139.34,9.67408568]
[1764694404985,62.46,139.37,139.34,9.67408568]
[1764694405885,62.46,139.37,139.34,3.22]
[1764694406586,68.9174,139.37,139.33,6.50603137]
[1764694406782,68.9174,139.37,139.33,3.27194569]
[1764694406982,62.46,139.37,139.33,6.50603137]
[1764694407191,62.46,139.37,139.33,0.05194569]
[1764694407387,6.4581,139.36,139.33,0.05194569]
[1764694407583,6.4581,139.36,139.33,3.27194569]
[1764694407987,6.4581,139.36,139.33,0.05194569]
[1764694408189,62.46,139.37,139.33,0.05194569]
[1764694408693,6.4579,139.36,139.33,0.05194569]
[1764694409194,6.4579,139.36,139.33,3.27194569]
[1764694410493,6.49407119,139.38,139.33,3.27194569]
[1764694410798,62.44,139.37,139.34,3.22]
[1764694410994,68.8974,139.37,139.33,6.50603137]
[1764694411189,68.8974,139.37,139.33,0.05194569]
[1764694411389,68.8974,139.37,139.33,6.50603137]
[1764694411792,62.44,139.37,139.33,6.50603137]
[1764694412101,62.44,139.37,139.33,9.72603137]
[1764694412500,0.03677119,139.38,139.35,9.67408568]
[1764694412692,62.44,139.37,139.35,9.67408568]
[1764694413098,0.03677119,139.38,139.35,9.67408568]
[1764694413295,0.03677119,139.38,139.36,9.67408568]
[1764694413499,0.03677119,139.38,139.37,3.22]
[1764694413696,0.03677119,139.38,139.36,6.50801568]
[1764694413894,0.03677119,139.38,139.36,9.63801568]
[1764694414098,0.03677119,139.38,139.37,3.13]
[1764694415199,0.03677119,139.38,139.36,0.05393]
[1764694419104,62.44,139.37,139.36,0.05393]
[1764694425809,62.44,139.37,139.32,6.45408568]
[1764694426613,62.44,139.37,139.33,6.50632677]
[1764694427712,6.4579,139.36,139.33,6.50632677]
[1764694428406,62.44,139.37,139.34,2.98]
[1764694429297,0.03677119,139.38,139.36,2.98]
[1764694429501,62.42,139.37,139.36,2.98]
[1764694430005,62.42,139.37,139.36,9.43408568]
[1764694431212,62.42,139.37,139.36,6.45408568]
[1764694431508,62.42,139.37,139.34,6.45408568]
[1764694432610,68.8774,139.37,139.34,6.45408568]
[1764694433306,62.42,139.37,139.34,6.45408568]
[1764694434014,62.42,139.37,139.33,6.50632677]
[1764694435010,6.4583,139.35,139.33,0.05224109]
[1764694436914,6.4581,139.36,139.33,0.05224109]
[1764694437819,62.42,139.35,139.33,3.03224109]
[1764694438018,62.42,139.35,139.34,6.45408568]
[1764694438716,62.42,139.35,139.33,9.48632677]
[1764694438918,62.42,139.35,139.34,6.45408568]
[1764694441020,62.42,139.35,139.33,0.05224109]
[1764694441411,68.8786,139.35,139.33,0.05224109]
[1764694442318,6.4588,139.34,139.33,0.05224109]
[1764694442515,162.8841,139.35,139.28,6.65408568]
[1764694442818,2.99620923,139.34,139.29,6.45408568]
[1764694443523,6.4598,139.32,139.3,0.05282723]
[1764694443717,62.42,139.31,139.3,0.05282723]
[1764694444608,62.42,139.31,139.3,6.50691291]
[1764694445621,62.42,139.31,139.3,0.05282723]
[1764694445823,62.42,139.31,139.3,6.67382557]
[1764694446124,62.42,139.31,139.3,0.05282723]
[1764694446320,62.42,139.32,139.3,3.03282723]
[1764694446523,62.42,139.32,139.31,6.61907245]
[1764694446735,62.47026669,139.33,139.32,2.98]
[1764694446916,62.47026669,139.33,139.31,6.61907245]
[1764694447738,62.47026669,139.33,139.3,6.67189968]
[1764694448035,62.42,139.32,139.31,6.61907245]
[1764694448225,0.05026669,139.33,139.31,5.97620923]
[1764694448429,62.47026669,139.33,139.32,9.60180943]
[1764694449432,62.47026669,139.33,139.32,2.98]
[1764694451533,62.47026669,139.33,139.32,11.78957765]
[1764694451933,62.47026669,139.33,139.31,8.80957765]
[1764694452237,62.47026669,139.33,139.32,6.62787053]
[1764694452437,62.47026669,139.33,139.31,6.62787053]
[1764694453640,68.92946669,139.33,139.31,6.62787053]
[1764694453840,62.47026669,139.33,139.3,6.68069776]
[1764694454036,62.47026669,139.33,139.3,0.05282723]
[1764694454343,6.4601,139.32,139.3,0.05282723]
[1764694455240,6.4601,139.32,139.3,6.68069776]
[1764694455842,68.92956669,139.33,139.3,6.68069776]
[1764694456538,62.47026669,139.33,139.3,6.68069776]
[1764694456738,62.47026669,139.33,139.31,9.83787053]
[1764694457343,62.47026669,139.33,139.32,9.83787053]
[1764694457538,62.47026669,139.33,139.32,6.20620923]
[1764694458040,62.47026669,139.33,139.32,3.21]
[1764694458343,62.47026669,139.33,139.32,9.82740025]
[1764694458543,62.47026669,139.33,139.32,3.21]
[1764694459133,186.8565,139.39,139.33,3.21]
[1764694459335,68.8565,139.39,139.35,12.82167517]
[1764694459648,62.4,139.39,139.36,9.82546594]
[1764694459852,62.4,139.39,139.37,6.61546594]
[1764694460047,62.45390062,139.39,139.37,6.66560159]
[1764694460536,62.45390062,139.39,139.37,0.05013565]
[1764694463051,62.45390062,139.39,139.37,3.26013565]
[1764694464156,62.45390062,139.39,139.37,6.66560159]
[1764694464337,62.45390062,139.39,139.37,0.05013565]
[1764694467546,68.91050062,139.39,139.37,0.05013565]
[1764694467755,62.45390062,139.39,139.37,3.26013565]
[1764694468054,62.45390062,139.39,139.37,0.05013565]
[1764694469151,68.91040062,139.39,139.37,0.05013565]
[1764694469351,62.45390062,139.39,139.37,0.05013565]
[1764694470655,68.89050062,139.39,139.37,0.05013565]
[1764694472060,68.89050062,139.39,139.37,0.00013565]
[1764694472362,6.4585,139.35,139.3,6.61546594]
[1764694472551,62.38,139.34,139.31,6.61546594]
[1764694473159,62.42761648,139.34,139.31,6.66690185]
[1764694473661,0.04761648,139.34,139.31,9.87690185]
[1764694473856,0.04761648,139.34,139.32,9.82546594]
[1764694474057,0.04761648,139.34,139.32,6.61546594]
[1764694474263,0.04761648,139.34,139.32,9.66546594]
[1764694475950,0.04761648,139.34,139.32,6.61546594]
[1764694476147,0.04761648,139.34,139.32,9.66546594]
[1764694476560,0.04761648,139.34,139.33,6.61546594]
[1764694476863,0.04761648,139.34,139.33,9.66546594]
[1764694479365,0.04761648,139.34,139.33,3.05]
[1764694480764,6.50661648,139.34,139.33,6.61693508]
[1764694480959,0.04761648,139.34,139.31,6.66837099]
[1764694481162,0.04761648,139.34,139.32,8.38200722]
[1764694481362,0.04761648,139.34,139.32,6.61693508]
[1764694482570,0.04761648,139.34,139.33,3.25]
[1764694483170,0.04761648,139.34,139.33,9.86693508]
[1764694483863,0.04761648,139.34,139.33,6.61693508]
[1764694484063,0.04761648,139.34,139.32,6.61693508]
[1764694484264,0.04761648,139.34,139.33,6.61693508]
[1764694487068,0.04761648,139.34,139.33,3.25]
[1764694487763,62.36,139.38,139.33,3.25]
[1764694487964,62.36,139.38,139.35,6.61834035]
[1764694488161,62.36,139.38,139.35,3.25]
[1764694488357,62.36,139.38,139.35,6.61834035]
[1764694488565,62.36,139.38,139.33,6.61834035]
[1764694488866,0.0468917,139.37,139.34,6.66732251]
[1764694489666,0.0468917,139.37,139.35,3.25]
[1764694489972,0.0468917,139.37,139.34,9.91732251]
[1764694490875,0.0468917,139.37,139.35,3.53]
[1764694491666,0.0468917,139.37,139.35,10.14834035]
[1764694492169,0.0468917,139.37,139.36,3.25]
[1764694492368,0.0468917,139.37,139.36,9.86834035]
[1764694493372,0.0468917,139.37,139.36,6.61834035]
[1764694493565,0.0468917,139.37,139.35,6.89834035]
[1764694494165,0.0468917,139.37,139.36,3.25]
[1764694494364,0.0468917,139.37,139.36,9.86834035]
[1764694494766,0.0468917,139.37,139.36,6.61834035]
[1764694494976,0.0468917,139.37,139.35,6.89834035]
[1764694496074,0.0468917,139.37,139.36,3.25]
[1764694496275,62.34,139.42,139.36,9.86834035]
[1764694496576,69.36588206,139.42,139.36,3.25]
[1764694497278,0.04830306,139.4,139.38,0.05424318]
[1764694500483,0.04830306,139.4,139.38,3.30424318]
[1764694500672,0.04830306,139.4,139.38,0.05424318]
[1764694503389,6.50440306,139.4,139.38,0.05424318]
[1764694506381,6.4573,139.38,139.36,6.61834035]
[1764694506686,62.32,139.37,139.35,0.28]
[1764694507379,62.32,139.36,139.35,10.14834035]
[1764694507978,62.32,139.36,139.35,6.61834035]
[1764694508285,62.32,139.36,139.34,6.67268793]
[1764694510286,62.32,139.36,139.35,3.04]
[1764694510487,62.32,139.36,139.35,9.65834035]
[1764694511988,0.05498903,139.37,139.36,3.04]
[1764694512887,0.05498903,139.37,139.36,9.69487467]
[1764694513685,0.05498903,139.37,139.36,11.86062125]
[1764694513885,0.05498903,139.37,139.36,3.04]
[1764694514286,0.05498903,139.37,139.36,11.86062125]
[1764694514476,0.05498903,139.37,139.36,3.04]
[1764694518091,0.05498903,139.37,139.36,11.86062125]
[1764694519081,21.53,139.47,139.37,3.04]
[1764694519384,6.4528,139.47,139.43,3.04]
[1764694519891,6.4528,139.47,139.43,9.69748298]
[1764694520095,0.04588391,139.46,139.44,0.0523316]
[1764694521194,6.49918391,139.46,139.44,0.0523316]
[1764694521496,100.392,139.45,139.38,6.65748298]
[1764694521688,4.68181573,139.44,139.39,6.65748298]
[1764694521889,68.755,139.43,139.39,9.69748298]
[1764694522291,0.05245783,139.42,139.4,0.04781471]
[1764694522597,0.05245783,139.42,139.4,3.08781471]
[1764694523888,0.05245783,139.42,139.4,9.74529769]
[1764694524196,0.05245783,139.42,139.41,3.04]
[1764694524793,62.28,139.45,139.41,3.04]
[1764694525096,62.28,139.45,139.42,3.04]
[1764694525898,62.32743098,139.45,139.42,3.04]
[1764694526085,0.04743098,139.45,139.42,3.04]
[1764694526797,0.04743098,139.45,139.44,3.04]
[1764694527490,0.04743098,139.45,139.43,3.08561221]
[1764694532193,0.04743098,139.45,139.43,3.40561221]
[1764694532592,0.04743098,139.45,139.44,3.04]
[1764694534700,118.0,139.54,139.44,3.04]
[1764694534895,62.26,139.53,139.44,3.04]
[1764694535201,6.4505,139.52,139.44,3.04]
[1764694535495,62.26,139.53,139.44,3.04]
[1764694535699,62.26,139.53,139.47,0.04751992]
[1764694535896,62.24,139.52,139.47,3.30751992]
[1764694536893,118.0,139.54,139.47,3.30751992]
[1764694537092,62.24,139.53,139.47,3.30751992]
[1764694537498,68.6901,139.53,139.47,3.30751992]
[1764694539000,68.6901,139.53,139.47,0.04751992]
[1764694539001,62.24,139.53,139.47,0.04751992]
[1764694539302,62.24,139.53,139.47,3.16751992]
[1764694540195,62.24,139.52,139.47,3.16751992]
[1764694542796,3.2013556,139.57,139.48,1.75184725]
[1764694542997,100.2413,139.66,139.55,3.12]
[1764694543198,100.2993,139.58,139.53,6.65748298]
[1764694543408,100.2993,139.58,139.47,8.87664398]
[1764694543409,100.3272,139.54,139.47,8.87664398]
[1764694543705,100.3272,139.54,139.43,3.44]
[1764694543706,100.3344,139.53,139.43,3.44]
[1764694543904,6.4516,139.5,139.43,3.44]
[1764694544095,100.3632,139.49,139.43,0.32]
[1764694544398,0.04809947,139.47,139.45,0.04578596]
[1764694544601,162.6081,139.46,139.43,0.32]
[1764694544997,6.4537,139.45,139.43,0.32]
[1764694545600,6.4537,139.45,139.43,0.36611788]
[1764694545996,6.4537,139.45,139.37,3.12]
[1764694545997,6.4548,139.43,139.37,3.12]
[1764694546400,90.41709757,139.46,139.37,3.12]
[1764694546705,68.6733,139.46,139.37,3.12]
[1764694546901,0.04843502,139.43,139.4,0.04733886]
[1764694547802,100.4152,139.42,139.31,3.12]
[1764694548001,62.22,139.41,139.32,1.75350613]
[1764694548804,0.05052596,139.38,139.35,0.05393278]
[1764694550308,0.05052596,139.38,139.35,3.17393278]
[1764694550509,62.22,139.37,139.35,3.17393278]
[1764694550695,0.05052596,139.38,139.35,3.17393278]
[1764694550900,62.27052596,139.38,139.35,0.05393278]
[1764694551201,0.05052596,139.38,139.35,3.17393278]
[1764694554207,0.05052596,139.38,139.36,1.75581797]
[1764694554411,0.05052596,139.38,139.37,3.12]
[1764694555408,6.4534,139.46,139.37,3.12]
[1764694555604,113.2429,139.52,139.4,3.12]
[1764694555605,118.0,139.49,139.4,3.12]
[1764694555810,62.22,139.46,139.42,3.12]
[1764694556512,0.0516347,139.45,139.43,3.17484815]
[1764694556714,0.0516347,139.45,139.43,3.17360993]
[1764694560311,0.0516347,139.45,139.43,0.05360993]
[1764694560514,0.0516347,139.45,139.43,3.17360993]
[1764694560810,0.0516347,139.45,139.44,1.75568007]
[1764694561013,0.0516347,139.45,139.44,3.12]
[1764694561216,7.01589702,139.52,139.44,3.12]
[1764694561417,62.22,139.51,139.47,3.12]
[1764694562114,0.05386998,139.5,139.48,0.05087694]
[1764694566615,2.99161483,139.49,139.48,0.05087694]
[1764694567717,65.19161483,139.49,139.48,0.05087694]
[1764694568618,62.2,139.49,139.48,0.05087694]
[1764694569621,65.24548481,139.5,139.48,0.05087694]
[1764694570013,0.05386998,139.5,139.48,3.08087694]
[1764694570219,0.05386998,139.5,139.49,4.78427569]
[1764694570520,0.05386998,139.5,139.49,3.03]
[1764694570921,0.05386998,139.5,139.48,3.08087694]
[1764694571310,62.2,139.53,139.5,3.03]
[1764694571518,2.99161483,139.57,139.5,3.03]
[1764694571724,62.18,139.56,139.5,3.03]
[1764694572318,62.18,139.56,139.52,0.04537844]
[1764694572521,0.03131152,139.54,139.52,3.07537844]
[1764694572821,65.17161483,139.59,139.54,3.03]
[1764694573824,62.18,139.59,139.55,0.05478595]
[1764694574022,2.99161483,139.58,139.55,3.08478595]
[1764694574421,62.18,139.59,139.55,3.08478595]
[1764694577226,7.00203508,139.62,139.55,3.08478595]
[1764694577427,62.16,139.61,139.55,3.08478595]
[1764694579132,69.16203508,139.62,139.55,3.08478595]
[1764694579333,62.16,139.61,139.55,3.08478595]
[1764694579831,62.16,139.61,139.57,3.03]
[1764694580331,62.16,139.64,139.58,4.77401449]
[1764694580536,62.16,139.64,139.6,0.0512247]
[1764694581233,7.00203508,139.68,139.6,3.0812247]
[1764694581622,62.14,139.69,139.61,4.77015559]
[1764694581830,62.14,139.69,139.64,0.04655974]
[1764694584026,7.00203508,139.68,139.64,0.04655974]
[1764694584223,62.14,139.69,139.64,0.04655974]
[1764694584425,62.14,139.69,139.65,3.03]
[1764694584621,62.14,139.69,139.64,0.04655974]
[1764694584622,62.14,139.69,139.64,3.07655974]
[1764694585033,6.4437,139.67,139.64,0.04655974]
[1764694585941,100.2478,139.65,139.52,3.03]
[1764694586239,7.00203508,139.63,139.56,1.73763422]
[1764694586529,7.00203508,139.57,139.44,3.03]
[1764694586735,0.04655975,139.52,139.51,1.7394875]
[1764694586934,0.04655975,139.53,139.51,1.7394875]
[1764694587135,0.04655975,139.53,139.5,0.05358503]
[1764694587437,0.04655975,139.53,139.5,3.08358503]
[1764694587939,62.12,139.58,139.52,3.03]
[1764694588135,100.2643,139.63,139.52,3.03]
[1764694588339,7.00203508,139.61,139.54,3.03]
[1764694588940,7.00203508,139.61,139.56,0.05115616]
[1764694589738,62.12,139.6,139.56,0.05115616]
[1764694590336,13.44983508,139.58,139.56,0.05115616]
[1764694591541,75.56893508,139.6,139.56,0.05115616]
[1764694591741,62.12,139.59,139.56,0.05115616]
[1764694591940,62.12,139.58,139.56,0.05115616]
[1764694592335,13.44893508,139.6,139.56,0.05115616]
[1764694592641,62.12,139.59,139.56,0.05115616]
[1764694592837,68.5674,139.59,139.56,0.05115616]
[1764694593741,6.4481,139.58,139.56,0.05115616]
[1764694595740,13.45023508,139.57,139.49,3.01]
[1764694595940,7.00203508,139.57,139.52,1.74179954]
[1764694596641,7.00203508,139.57,139.51,1.74179954]
[1764694596939,0.05115616,139.55,139.53,0.04709882]
[1764694597238,62.12,139.54,139.53,0.04709882]
[1764694597441,0.05115616,139.55,139.53,3.05709882]
[1764694598043,0.05115616,139.55,139.53,0.04709882]
[1764694599546,0.05115616,139.55,139.53,2.99709882]
[1764694600841,0.05115616,139.55,139.54,4.6978559]
[1764694601037,0.05115616,139.55,139.54,2.95]
[1764694601448,62.12,139.59,139.54,2.95]
[1764694601647,62.12,139.59,139.56,2.95]
[1764694602149,62.12,139.61,139.56,2.95]
[1764694602448,62.12,139.61,139.58,2.95]
[1764694602844,62.12,139.61,139.57,0.05281485]
[1764694603243,68.5664,139.61,139.57,3.00281485]
[1764694603449,62.12,139.61,139.57,0.05281485]
[1764694604450,62.12,139.64,139.58,4.70070618]
[1764694604644,62.12,139.64,139.58,2.95]
[1764694605552,62.12,139.64,139.57,0.05281485]
[1764694605553,7.00203508,139.61,139.57,0.05281485]
[1764694606450,6.4473,139.59,139.57,0.05281485]
[1764694606751,62.1,139.58,139.57,0.05281485]
[1764694608152,62.1,139.61,139.57,3.00281485]
[1764694608856,100.2353,139.67,139.57,3.00281485]
[1764694609058,69.10203508,139.66,139.61,0.05458936]
[1764694609759,69.10203508,139.66,139.61,3.00458936]
[1764694610263,69.10203508,139.66,139.61,0.05458936]
[1764694610448,62.1,139.66,139.61,0.05458936]
[1764694610756,6.4446,139.65,139.61,0.05458936]
[1764694611858,21.17248786,139.71,139.61,3.00458936]
[1764694612151,69.10203508,139.7,139.65,0.0470702]
[1764694613446,100.221,139.69,139.65,0.0470702]
[1764694613651,107.23703508,139.67,139.58,2.95]
[1764694613858,62.1,139.66,139.59,1.7550776]
[1764694614260,7.00203508,139.64,139.59,1.7550776]
[1764694614458,7.00203508,139.64,139.56,9.51681109]
[1764694614654,0.0470702,139.61,139.59,0.04684172]
[1764694614854,62.1470702,139.61,139.59,0.04684172]
[1764694615764,68.5935702,139.61,139.59,0.04684172]
[1764694616460,62.1470702,139.61,139.59,0.04684172]
[1764694617053,62.1470702,139.61,139.59,2.99684172]
[1764694619856,62.1470702,139.61,139.59,0.04684172]
[1764694621264,62.1470702,139.61,139.59,2.99684172]
[1764694621567,0.0470702,139.61,139.6,4.71038172]
[1764694621756,0.0470702,139.61,139.6,6.56681109]
[1764694621951,0.0470702,139.61,139.59,0.04684172]
[1764694622264,0.0470702,139.61,139.6,4.71089927]
[1764694622461,0.0470702,139.61,139.6,9.51681109]
[1764694622766,62.08,139.64,139.61,2.95]
[1764694622966,11.90845131,139.7,139.63,2.95]
[1764694623166,100.1977,139.72,139.63,9.55563814]
[1764694624367,62.08,139.69,139.64,3.00423506]
[1764694625262,62.08,139.69,139.64,0.05423506]
[1764694625768,68.5228,139.69,139.64,0.05423506]
[1764694625964,62.08,139.69,139.64,0.05423506]
[1764694627469,68.523,139.69,139.64,3.00423506]
[1764694628759,62.08,139.69,139.64,3.00423506]
[1764694628966,62.06,139.73,139.66,3.09]
[1764694629270,62.06,139.73,139.68,3.13555606]
[1764694630768,6.4413,139.72,139.68,0.04555606]
[1764694631463,62.06,139.73,139.68,0.04555606]
[1764694631464,6.4418,139.71,139.68,0.04555606]
[1764694631764,6.4423,139.7,139.68,0.04555606]
[1764694632560,6.4415,139.72,139.68,0.04555606]
[1764694632868,62.06,139.71,139.68,3.13555606]
[1764694633072,6.4422,139.7,139.68,0.04555606]
[1764694633367,100.2267,139.68,139.61,3.09]
[1764694633567,11.90845131,139.68,139.61,3.09]
[1764694633765,6.4441,139.66,139.61,3.09]
[1764694633960,62.06,139.65,139.57,9.69563814]
[1764694634163,0.04555606,139.62,139.6,0.05341056]
[1764694635372,6.49175606,139.62,139.6,0.05341056]
[1764694635565,100.31635606,139.62,139.53,9.69563814]
[1764694635866,100.2765,139.61,139.54,1.75526174]
[1764694636063,62.06,139.6,139.54,4.84560585]
[1764694636267,62.06,139.61,139.56,4.84560585]
[1764694636469,62.06,139.61,139.53,9.69563814]
[1764694636660,0.04824289,139.59,139.56,0.0503341]
[1764694638870,6.49564289,139.59,139.56,0.0503341]
[1764694640175,6.448,139.58,139.56,0.0503341]
[1764694640569,100.298,139.58,139.5,9.69563814]
[1764694640769,100.298,139.58,139.51,1.75391364]
[1764694641380,100.3071,139.57,139.51,1.75391364]
[1764694641581,0.0489521,139.55,139.53,0.05456076]
[1764694643377,0.0489521,139.55,139.53,3.14456076]
[1764694644381,0.0489521,139.55,139.54,1.75424033]
[1764694644586,0.0489521,139.55,139.53,3.14456076]
[1764694645083,0.0489521,139.55,139.53,0.05456076]
[1764694646579,6.4982521,139.55,139.53,0.05456076]
[1764694648277,6.4497,139.54,139.47,6.60563814]
[1764694648579,6.4497,139.54,139.49,1.75762388]
[1764694648780,100.3279,139.54,139.48,1.75762388]
[1764694648986,6.4507,139.52,139.46,3.09]
[1764694649179,62.08,139.51,139.46,3.09]
[1764694649379,0.04640805,139.5,139.48,0.04946135]
[1764694651576,6.49800805,139.5,139.48,0.04946135]
[1764694652680,28.02800805,139.5,139.48,0.04946135]
[1764694652879,6.4532,139.46,139.4,3.09]
[1764694653088,6.4532,139.46,139.38,6.60563814]
[1764694653089,62.1,139.46,139.42,3.09]
[1764694653588,62.1,139.46,139.43,1.75433104]
[1764694653979,162.53731514,139.46,139.43,0.04579456]
[1764694655186,184.06731514,139.46,139.43,0.04579456]
[1764694655586,6.4538,139.45,139.43,0.04579456]
[1764694655983,27.9838,139.45,139.43,0.04579456]
[1764694656180,6.4538,139.45,139.43,0.04579456]
[1764694658288,74.05866645,139.46,139.43,0.04579456]
[1764694658289,0.05021514,139.46,139.43,3.13579456]
[1764694658486,62.17021514,139.46,139.43,3.13579456]
[1764694659189,62.17021514,139.46,139.45,3.0]
[1764694660777,112.22025131,139.57,139.46,3.0]
[1764694660977,21.53,139.56,139.47,4.74491633]
[1764694661189,62.12,139.55,139.48,1.74491633]
[1764694661385,112.18695131,139.61,139.52,3.0]
[1764694661591,62.12,139.6,139.53,1.74290706]
[1764694661794,6.50084546,139.58,139.55,0.04782205]
[1764694662487,6.4484,139.57,139.55,0.04782205]
[1764694662688,62.12,139.56,139.55,0.04782205]
[1764694663688,100.3358,139.53,139.44,3.06]
[1764694663891,162.464,139.52,139.44,3.06]
[1764694664587,21.53,139.48,139.36,3.06]
[1764694664786,11.95768611,139.46,139.43,0.05182442]